fUST/lending_fUST_20250918
["ID","MTS","AMOUNT","RATE_DAILY","PERIOD"]
[386046826,1758197735325,-454.07397994,0.00022562,2]
[386046827,1758197739291,-193.1425748,0.00022561,3]
[386046828,1758197746556,-205.03540079,0.00022561,3]
[386046829,1758197749235,-81.82202441,0.00022561,3]
[386046830,1758197749259,-82.17036969,0.00022561,3]
[386046831,1758197751376,-292.04322377,0.00022561,3]
[386046832,1758197754882,-105.78640654,0.00022561,3]
[386046833,1758197754904,-124.0286143,0.00022561,3]
[386046834,1758197757734,-320.61831682,0.00022561,3]
[386046835,1758197760421,-35.35306888,0.00022561,3]
[386046836,1758197760444,-241.21101722,0.00022561,3]
[386046837,1758197763595,-227.85055231,0.0002256,2]
[386046840,1758197769285,-72.14944769,0.0002256,2]
[386046841,1758197769308,-108.61400121,0.00022561,3]
[386046842,1758197772059,-130.17498157,0.00022561,3]
[386046843,1758197772096,-169.82501843,0.00022561,3]
[386046844,1758197777268,-173.02941,0.00022561,3]
[386046845,1758197782062,-137.14557157,0.00022561,3]
[386046846,1758197782085,-191.96531903,0.00022561,3]
[386046847,1758197785779,-189.2812888,0.00022561,3]
[386046848,1758197788021,-98.75339217,0.00022561,3]
[386046849,1758197788045,-74.07095007,0.00022561,3]
[386046850,1758197791283,-151.89436896,0.00022561,3]
[386046851,1758197794293,9958.25408871,0.0002221,2]
[386046852,1758197794324,9167.41401129,0.0002221,2]
[386046853,1758197794684,-236.6671919,0.00022561,3]
[386046854,1758197799481,-17.36748907,0.00022561,3]
[386046855,1758197799503,-134.63251093,0.00022561,3]
[386046856,1758197802455,-169.75798117,0.000225,2]
[386046857,1758197805343,-206.78075395,0.000225,2]
[386046858,1758197809408,-204.31655664,0.000225,2]
[386046859,1758197812292,-292.47543229,0.000225,2]
[386046860,1758197814542,-172.72673596,0.000225,2]
[386046861,1758197816181,-421.78233159,0.000225,2]
[386046862,1758197818840,-212.3881917,0.000225,2]
[386046863,1758197821144,-232.64318112,0.000225,2]
[386046864,1758197823513,-196.91157007,0.000225,2]
[386046865,1758197825744,-313.32675298,0.000225,2]
[386046866,1758197825984,277.12132676,0.000199,2]
[386046867,1758197826075,277.12132656,0.00021149,2]
[386046869,1758197830448,-190.46849892,0.00022398,2]
[386046875,1758197834427,-86.65282764,0.00022398,2]
[386046876,1758197834451,-84.52912042,0.000225,2]
[386046883,1758197837183,-348.26192774,0.000225,2]
[386046884,1758197839854,-212.68079222,0.000225,2]
[386046885,1758197841917,-300.0,0.000225,2]
[386046886,1758197844139,-161.22329088,0.000225,2]
[386046888,1758197847320,-231.37939853,0.000225,2]
[386046889,1758197851864,1409.4954,0.0002221,2]
[386046890,1758197871496,-154.59375582,0.000225,2]
[386046891,1758197876142,-280.59527709,0.000225,2]
[386046892,1758197880075,-111.4665241,0.000225,2]
[386046893,1758197880099,-155.01904992,0.0002256,2]
[386046894,1758197908203,-291.91972394,0.0002256,2]
[386046895,1758197912458,-8.08027606,0.0002256,2]
[386046896,1758197912482,-345.36748907,0.00022561,3]
[386046897,1758197912507,-17.88443352,0.00022561,3]
[386046898,1758197916410,-204.65570575,0.00022561,3]
[386046899,1758197918646,-257.45986073,0.00022561,3]
[386046900,1758197918672,-211.12955123,0.00022561,3]
[386046901,1758197922496,-268.87044877,0.00022561,3]
[386046902,1758197922523,-211.12955123,0.00022561,3]
[386046903,1758197925700,-159.53144871,0.00022561,3]
[386046904,1758197928670,-109.33900006,0.00022561,3]
[386046905,1758197928694,-380.32099994,0.00022561,3]
[386046906,1758197933004,-99.67900006,0.00022561,3]
[386046907,1758197933026,-200.32099994,0.00022561,3]
[386046908,1758197935531,-170.82718854,0.00022561,3]
[386046909,1758197937753,-183.83066908,0.000225,2]
[386046910,1758197940846,-211.84545091,0.000225,2]
[386046911,1758197944112,-57.15660129,0.000225,2]
[386046912,1758197944137,-100.44439566,0.00022515,2]
[386046913,1758197945771,-352.38832559,0.00022515,2]
[386046914,1758197945796,-82.46180266,0.0002253,2]
[386046915,1758197950491,-192.6430603,0.0002253,2]
[386046916,1758197953659,-177.72785829,0.0002253,2]
[386046917,1758197953683,-28.67781084,0.00022544,2]
[386046918,1758197956676,-271.19069471,0.00022544,2]
[386046919,1758197961506,-152.9642157,0.00022544,2]
[386046920,1758197961529,-96.71085632,0.00022559,2]
[386046921,1758197964174,-203.87801185,0.00022559,2]
[386046922,1758197966434,-152.24385308,0.00022559,2]
[386046923,1758197966458,-38.25818979,0.0002256,2]
[386046924,1758197968677,-261.74181021,0.0002256,2]
[386046925,1758197968701,-32.9109397,0.00022561,3]
[386046926,1758197970498,-77.4778005,0.00022561,3]
[386046927,1758197970522,-198.07726386,0.00022561,3]
[386046928,1758197973907,-281.92273614,0.00022561,3]
[386046929,1758197973931,-184.54661208,0.00022561,3]
[386046930,1758197978716,-184.20678405,0.00022461,2]
[386046931,1758197981441,-68.12663125,0.00022461,2]
[386046932,1758197981465,-41.89474314,0.00022561,3]
[386046933,1758197981490,-43.36922297,0.00022561,3]
[386046934,1758197985854,-165.77677714,0.00022561,3]
[386046936,1758197989836,-247.0321659,0.00022561,3]
[386046938,1758197990914,666.0,0.00021596,2]
[386046939,1758197993216,-24.59631118,0.00022561,3]
[386046940,1758197993240,-179.25159537,0.00022561,3]
[386046941,1758197995647,-300.74840463,0.00022561,3]
[386046942,1758197995671,-125.90191569,0.00022561,3]
[386046943,1758197998996,-354.09808431,0.00022561,3]
[386046944,1758197999018,-40.73389932,0.00022561,3]
[386046945,1758198002370,-309.21773017,0.00022561,3]
[386046947,1758198007362,-257.86233546,0.0002256,2]
[386046948,1758198009502,249.40919402,0.000199,2]
[386046949,1758198009609,249.4091939,0.00021149,2]
[386046950,1758198011909,-183.99606479,0.00022398,2]
[386046951,1758198014130,-65.41312911,0.00022398,2]
[386046952,1758198014153,-92.72847064,0.0002256,2]
[386046953,1758198017535,-299.72185611,0.0002256,2]
[386046954,1758198025058,-161.67669228,0.0002256,2]
[386046955,1758198026732,-168.36796907,0.0002256,2]
[386046956,1758198061795,-189.83185764,0.000225,2]
[386046957,1758198067107,-273.70631476,0.000225,2]
[386046959,1758198073666,-204.31655664,0.000225,2]
[386046960,1758198076153,-367.48122729,0.000225,2]
[386046961,1758198078601,-163.27744421,0.000225,2]
[386046963,1758198157242,-994.2968439,0.00022461,2]
[386046964,1758198157271,-204.31655664,0.00022461,2]
[386046965,1758198157299,-1673.27964898,0.000225,2]
[386046966,1758198157328,-300.0,0.00022559,2]
[386046967,1758198157356,-1200.0,0.00022559,2]
[386046968,1758198157385,-219.64267644,0.0002256,2]
[386046969,1758198157413,-210.01332688,0.0002256,3]
[386046970,1758198165133,-512.73251397,0.0002256,3]
[386046971,1758198165161,-480.0,0.0002256,3]
[386046972,1758198165192,-480.0,0.0002256,3]
[386046973,1758198165220,-482.90108494,0.0002256,3]
[386046974,1758198165248,-480.0,0.0002256,3]
[386046975,1758198165277,-480.0,0.0002256,3]
[386046976,1758198165305,-480.0,0.0002256,3]
[386046977,1758198165336,-480.0,0.0002256,3]
[386046978,1758198165365,-480.0,0.0002256,3]
[386046979,1758198165393,-480.0,0.0002256,3]
[386046981,1758198203438,224.46827451,0.000199,2]
[386046982,1758198203489,224.46827451,0.00021149,2]
[386046984,1758198225994,7740.8218982,0.00021561,2]
[386046985,1758198227931,-170.154419,0.00022398,2]
[386046987,1758198283394,161.205124,0.0002156,2]
[386046993,1758198397075,210.16725344,0.000199,2]
[386046994,1758198397159,210.1672533,0.00022164,2]
[386046998,1758198412423,1223.452901,0.0002156,2]
[386047004,1758198515627,10000.01,0.00017,2]
[386047005,1758198515654,15101.27190545,0.00017,2]
[386047006,1758198515683,10316.0389812,0.00017,2]
[386047008,1758198524142,4465.41666082,0.0002,2]
[386047009,1758198525605,5534.59333918,0.0001,2]
[386047010,1758198525628,2670.50718078,0.0001,2]
[386047012,1758198527009,7329.50281922,0.0001,2]
[386047013,1758198527032,10000.01,0.0001,2]
[386047014,1758198527053,10000.01,0.0001,2]
[386047015,1758198527075,4163.80111602,0.0001,2]
[386047016,1758198578988,210.1672533,0.000199,2]
[386047018,1758198630802,-171.18194806,0.00022373,2]
[386047019,1758198630830,-250.0,0.00022396,2]
[386047020,1758198630860,-226.59529085,0.00022459,2]
[386047021,1758198630889,-1914.59536634,0.00022473,2]
[386047022,1758198630920,-210.1672533,0.00022487,2]
[386047023,1758198631072,-4491.2397499,0.00022535,2]
[386047024,1758198631100,-196.0,0.00022557,2]
[386047025,1758198631128,-300.0,0.00022558,2]
[386047060,1758198631940,-197.0,0.00022558,2]
[386047062,1758198631950,-300.0,0.00022558,2]
[386047063,1758198631959,-1708.58573842,0.00022559,2]
[386047098,1758198637774,-48291.41426158,0.00022559,2]
[386047099,1758198637784,-480.0,0.00022559,3]
[386047100,1758198637793,-480.0,0.00022559,3]
[386047101,1758198637802,-484.31585258,0.00022559,3]
[386047102,1758198637812,-483.95768345,0.00022559,3]
[386047103,1758198637821,-503.7,0.00022559,3]
[386047104,1758198637831,-556.69590608,0.00022559,3]
[386047105,1758198637841,-480.0,0.00022559,3]
[386047106,1758198637851,-480.0,0.00022559,3]
[386047107,1758198637860,-480.0,0.00022559,3]
[386047108,1758198637869,-480.0,0.00022559,3]
[386047109,1758198637878,-480.0,0.00022559,3]
[386047110,1758198637887,-480.0,0.00022559,3]
[386047111,1758198637897,-480.0,0.00022559,3]
[386047112,1758198637906,-480.0,0.00022559,3]
[386047113,1758198637915,-480.0,0.00022559,3]
[386047114,1758198637925,-480.0,0.00022559,3]
[386047115,1758198637934,-480.0,0.00022559,3]
[386047116,1758198637943,-525.18,0.00022559,3]
[386047117,1758198637952,-480.0,0.00022559,3]
[386047118,1758198637961,-480.0,0.00022559,3]
[386047119,1758198637971,-480.0,0.00022559,3]
[386047120,1758198637980,-480.0,0.00022559,3]
[386047121,1758198637989,-480.0,0.0002256,3]
[386047122,1758198637999,-480.0,0.0002256,3]
[386047123,1758198638008,-480.0,0.0002256,3]
[386047124,1758198638019,-232.98035473,0.0002256,3]
[386047125,1758198638027,-480.0,0.0002256,3]
[386047126,1758198638035,-480.0,0.0002256,3]
[386047127,1758198638044,-480.0,0.0002256,3]
[386047128,1758198638053,-500.0,0.0002256,3]
[386047129,1758198638062,-480.0,0.0002256,3]
[386047130,1758198638070,-480.0,0.0002256,3]
[386047131,1758198638079,-480.0,0.0002256,3]
[386047132,1758198638087,-480.0,0.0002256,3]
[386047133,1758198638096,-480.0,0.0002256,3]
[386047134,1758198638105,-480.0,0.0002256,3]
[386047135,1758198638114,-334.12880735,0.0002256,3]
[386047136,1758198638123,-480.0,0.0002256,3]
[386047137,1758198638133,-480.0,0.0002256,3]
[386047138,1758198638142,-480.0,0.0002256,3]
[386047139,1758198638151,-480.0,0.0002256,3]
[386047140,1758198638160,-480.0,0.0002256,3]
[386047141,1758198638169,-480.0,0.0002256,3]
[386047142,1758198638178,-485.0545717,0.0002256,3]
[386047143,1758198638187,-480.0,0.0002256,3]
[386047144,1758198638196,-480.0,0.0002256,3]
[386047145,1758198638206,-480.0,0.0002256,3]
[386047146,1758198638216,-480.0,0.0002256,3]
[386047147,1758198638225,-480.0,0.0002256,3]
[386047148,1758198638235,-480.0,0.0002256,3]
[386047149,1758198638244,-480.0,0.0002256,3]
[386047150,1758198638253,-480.0,0.0002256,3]
[386047151,1758198638262,-480.0,0.0002256,3]
[386047152,1758198638272,-439.74609048,0.0002256,3]
[386047153,1758198638284,-40.25390952,0.0002256,3]
[386047154,1758198638294,-480.0,0.0002256,3]
[386047155,1758198638303,-480.0,0.0002256,3]
[386047156,1758198638313,-480.0,0.0002256,3]
[386047157,1758198638325,-480.0,0.0002256,3]
[386047158,1758198638334,-480.0,0.0002256,3]
[386047159,1758198638343,-480.0,0.0002256,3]
[386047160,1758198638353,-607.53062348,0.0002256,3]
[386047161,1758198638363,-480.0,0.0002256,3]
[386047162,1758198638373,-480.0,0.0002256,3]
[386047163,1758198638384,-480.43945588,0.0002256,3]
[386047164,1758198638395,-480.0,0.0002256,3]
[386047165,1758198638404,-480.0,0.0002256,3]
[386047166,1758198638413,-461.92117547,0.0002256,3]
[386047167,1758198638425,-18.07882453,0.0002256,3]
[386047168,1758198638435,-480.0,0.0002256,3]
[386047169,1758198638444,-480.0,0.0002256,3]
[386047170,1758198638454,-762.6544073,0.0002256,2]
[386047171,1758198638464,-480.0,0.0002256,3]
[386047172,1758198638473,-351.87813473,0.0002256,3]
[386047173,1758198638483,-500.0,0.0002256,3]
[386047174,1758198638492,-500.0,0.0002256,3]
[386047175,1758198638501,-375.26178751,0.0002256,3]
[386047176,1758198638510,-480.0,0.0002256,3]
[386047177,1758198638520,-480.0,0.0002256,3]
[386047178,1758198638529,-480.0,0.0002256,3]
[386047179,1758198638539,-480.0,0.0002256,3]
[386047180,1758198638548,-267.70502411,0.0002256,3]
[386047181,1758198638556,-480.0,0.0002256,3]
[386047182,1758198638565,-480.0,0.0002256,3]
[386047183,1758198638574,-480.0,0.0002256,3]
[386047184,1758198638682,-1740.09,0.0002256,3]
[386047185,1758198638693,-275.8488079,0.0002256,3]
[386047186,1758198638705,-204.1511921,0.0002256,3]
[386047187,1758198638714,-62.8357215,0.0002256,3]
[386047188,1758198638727,-147.3842785,0.0002256,3]
[386047189,1758198638736,-143.9158765,0.0002256,3]
[386047190,1758198638748,-336.0841235,0.0002256,3]
[386047191,1758198638758,-480.0,0.0002256,3]
[386047192,1758198638777,-480.0,0.0002256,3]
[386047193,1758198638789,-480.0,0.0002256,3]
[386047194,1758198638799,-480.0,0.0002256,3]
[386047195,1758198638809,-480.0,0.0002256,3]
[386047196,1758198638819,-480.0,0.0002256,3]
[386047197,1758198638829,-480.0,0.0002256,3]
[386047198,1758198638839,-480.0,0.0002256,3]
[386047199,1758198638849,-486.14540909,0.0002256,3]
[386047200,1758198638860,-480.0,0.0002256,3]
[386047201,1758198638870,-480.0,0.0002256,3]
[386047202,1758198638880,-257.27411566,0.0002256,3]
[386047203,1758198638890,-480.0,0.0002256,3]
[386047204,1758198638900,-480.0,0.0002256,3]
[386047205,1758198638910,-480.0,0.0002256,3]
[386047206,1758198638919,-955.82,0.0002256,3]
[386047207,1758198638929,-480.0,0.0002256,3]
[386047208,1758198638939,-480.0,0.0002256,3]
[386047209,1758198638948,-480.0,0.0002256,3]
[386047210,1758198638958,-480.0,0.0002256,3]
[386047211,1758198638968,-500.0,0.0002256,3]
[386047212,1758198638978,-480.0,0.0002256,3]
[386047213,1758198638987,-480.0,0.0002256,3]
[386047214,1758198638997,-480.0,0.0002256,3]
[386047215,1758198639006,-480.0,0.0002256,3]
[386047216,1758198639016,-480.0,0.0002256,3]
[386047217,1758198639026,-480.0,0.0002256,3]
[386047218,1758198639036,-480.0,0.0002256,3]
[386047219,1758198639045,-480.0,0.0002256,3]
[386047220,1758198639054,-480.0,0.0002256,3]
[386047221,1758198639064,-480.0,0.0002256,3]
[386047222,1758198639074,-480.0,0.0002256,3]
[386047223,1758198639083,-480.0,0.0002256,3]
[386047224,1758198639092,-404.42797442,0.0002256,3]
[386047225,1758198639102,-675.58,0.0002256,3]
[386047226,1758198639111,-480.0,0.0002256,3]
[386047227,1758198639121,-538.46663493,0.0002256,3]
[386047228,1758198639130,-480.0,0.0002256,3]
[386047229,1758198639139,-485.4253694,0.0002256,3]
[386047230,1758198639149,-480.0,0.0002256,3]
[386047231,1758198639159,-480.0,0.0002256,3]
[386047232,1758198639168,-130.04837051,0.00022561,3]
[386047233,1758198639178,-480.85096437,0.00022561,3]
[386047234,1758198639188,-481.04834399,0.00022561,3]
[386047235,1758198639198,-387.25865732,0.00022561,3]
[386047236,1758198639207,-480.0,0.00022561,3]
[386047237,1758198639218,-491.39862136,0.00022561,3]
[386047238,1758198639227,-480.0,0.00022561,3]
[386047239,1758198639236,-481.01623842,0.00022561,3]
[386047240,1758198639246,-480.0,0.00022561,3]
[386047241,1758198639256,-480.0,0.00022561,3]
[386047242,1758198639267,-480.0,0.00022561,3]
[386047243,1758198639276,-481.47537724,0.00022561,3]
[386047244,1758198639286,-480.0,0.00022561,3]
[386047245,1758198639295,-480.0,0.00022561,3]
[386047246,1758198639305,-480.0,0.00022561,3]
[386047247,1758198639315,-480.0,0.00022561,3]
[386047248,1758198639324,-480.0,0.00022561,3]
[386047249,1758198639334,-480.0,0.00022561,3]
[386047250,1758198639344,-480.0,0.00022561,3]
[386047251,1758198639353,-480.0,0.00022561,3]
[386047252,1758198639363,-480.0,0.00022561,3]
[386047254,1758198639372,-480.0,0.00022561,3]
[386047256,1758198639384,-480.0,0.00022561,3]
[386047257,1758198639393,-482.27948589,0.00022561,3]
[386047258,1758198639403,-480.0,0.00022561,3]
[386047259,1758198639413,-480.0,0.00022561,3]
[386047260,1758198639422,-480.0,0.00022561,3]
[386047261,1758198639433,-480.0,0.00022561,3]
[386047262,1758198639443,-480.0,0.00022561,3]
[386047264,1758198639452,-480.0,0.00022561,3]
[386047266,1758198639462,-480.0,0.00022561,3]
[386047267,1758198639472,-480.0,0.00022561,3]
[386047269,1758198639481,-480.0,0.00022561,3]
[386047271,1758198639490,-480.0,0.00022561,3]
[386047272,1758198639499,-480.0,0.00022561,3]
[386047273,1758198639508,-480.82961122,0.00022561,3]
[386047274,1758198639519,-480.0,0.00022561,3]
[386047275,1758198639529,-481.10450259,0.00022561,3]
[386047276,1758198639538,-480.0,0.00022561,3]
[386047277,1758198639547,-480.0,0.00022561,3]
[386047278,1758198639557,-480.0,0.00022561,3]
[386047279,1758198639566,-419.9986561,0.00022561,3]
[386047280,1758198639575,-480.0,0.00022561,3]
[386047281,1758198639585,-480.0,0.00022561,3]
[386047282,1758198639595,-492.96280345,0.00022561,3]
[386047283,1758198639604,-480.0,0.00022561,3]
[386047284,1758198639614,-480.0,0.00022561,3]
[386047285,1758198639624,-480.0,0.00022561,3]
[386047286,1758198639634,-480.0,0.00022561,3]
[386047287,1758198639643,-481.07233996,0.00022561,3]
[386047288,1758198639653,-480.0,0.00022561,3]
[386047289,1758198639663,-507.17904501,0.00022561,3]
[386047290,1758198639673,-480.0,0.00022561,3]
[386047291,1758198639682,-480.0,0.00022561,3]
[386047292,1758198639692,-480.0,0.00022561,3]
[386047293,1758198639701,-480.0,0.00022561,3]
[386047294,1758198639711,-267.69360362,0.00022561,3]
[386047295,1758198639720,-481.53523181,0.00022561,3]
[386047296,1758198639730,-480.0,0.00022561,3]
[386047297,1758198639740,-480.0,0.00022561,3]
[386047298,1758198639749,-480.0,0.00022561,3]
[386047299,1758198639759,-480.0,0.00022561,3]
[386047301,1758198639769,-480.0,0.00022561,3]
[386047302,1758198639779,-480.0,0.00022561,3]
[386047304,1758198639788,-480.0,0.00022561,3]
[386047306,1758198639797,-480.0,0.00022561,3]
[386047308,1758198639807,-480.0,0.00022561,3]
[386047309,1758198639817,-480.0,0.00022561,3]
[386047310,1758198639827,-480.0,0.00022561,3]
[386047311,1758198639836,-480.0,0.00022561,3]
[386047312,1758198639846,-480.0,0.00022561,3]
[386047314,1758198639855,-480.0,0.00022561,3]
[386047316,1758198639865,-480.0,0.00022561,3]
[386047317,1758198639875,-480.0,0.00022561,3]
[386047319,1758198639884,-480.0,0.00022561,3]
[386047320,1758198639894,-480.0,0.00022561,3]
[386047321,1758198639903,-480.0,0.00022561,3]
[386047322,1758198639912,-480.0,0.00022561,3]
[386047323,1758198639922,-480.0,0.00022561,3]
[386047324,1758198639931,-480.0,0.00022561,3]
[386047325,1758198639941,-482.79850881,0.00022561,3]
[386047326,1758198639950,-480.0,0.00022561,2]
[386047327,1758198639962,-480.0,0.00022561,3]
[386047328,1758198639975,-480.0,0.00022561,3]
[386047329,1758198639984,-488.94718418,0.00022561,3]
[386047330,1758198639994,-480.0,0.00022561,3]
[386047331,1758198640004,-480.0,0.00022561,3]
[386047332,1758198640016,-480.0,0.00022561,3]
[386047333,1758198640026,-480.0,0.00022561,3]
[386047334,1758198640035,-480.0,0.00022561,3]
[386047335,1758198640045,-480.0,0.00022561,3]
[386047336,1758198640054,-480.0,0.00022561,3]
[386047337,1758198640063,-480.0,0.00022561,3]
[386047338,1758198640072,-480.0,0.00022561,3]
[386047339,1758198640081,-480.0,0.00022561,3]
[386047340,1758198640090,-480.0,0.00022561,3]
[386047341,1758198640100,-480.0,0.00022561,3]
[386047342,1758198640109,-480.0,0.00022561,3]
[386047343,1758198640119,-480.0,0.00022561,3]
[386047344,1758198640128,-480.0,0.00022561,3]
[386047345,1758198640138,-480.0,0.00022561,3]
[386047346,1758198640151,-480.0,0.00022561,3]
[386047347,1758198640160,-480.0,0.00022561,3]
[386047348,1758198640171,-480.0,0.00022561,3]
[386047349,1758198640183,-480.0,0.00022561,3]
[386047350,1758198640193,-350.64080612,0.00022561,3]
[386047351,1758198640203,-480.0,0.00022561,3]
[386047352,1758198640212,-480.0,0.00022561,3]
[386047353,1758198640222,-482.72625272,0.00022561,3]
[386047354,1758198640231,-480.0,0.00022561,3]
[386047355,1758198640240,-480.0,0.00022561,3]
[386047356,1758198640250,-480.0,0.00022561,3]
[386047357,1758198640259,-480.0,0.00022561,3]
[386047358,1758198640269,-480.0,0.00022561,3]
[386047359,1758198640279,-480.0,0.00022561,3]
[386047360,1758198640288,-480.0,0.00022561,3]
[386047361,1758198640297,-480.0,0.00022561,3]
[386047362,1758198640306,-480.0,0.00022561,3]
[386047363,1758198640315,-480.0,0.00022561,3]
[386047364,1758198640324,-480.0,0.00022561,3]
[386047365,1758198640334,-480.0,0.00022561,3]
[386047366,1758198640344,-480.0,0.00022561,3]
[386047367,1758198640353,-480.0,0.00022561,3]
[386047368,1758198640363,-480.0,0.00022561,3]
[386047369,1758198640372,-480.0,0.00022561,3]
[386047370,1758198640383,-480.0,0.00022561,3]
[386047371,1758198640393,-371.24663223,0.00022561,3]
[386047372,1758198640403,-480.0,0.00022561,3]
[386047373,1758198640412,-174.52537337,0.00022561,3]
[386047374,1758198640422,-480.0,0.00022561,3]
[386047375,1758198640433,-480.0,0.00022561,3]
[386047376,1758198640442,-480.0,0.00022561,3]
[386047377,1758198640451,-480.0,0.00022561,3]
[386047378,1758198640461,-480.0,0.00022561,3]
[386047379,1758198640471,-219.76359229,0.00022561,3]
[386047380,1758198640480,-480.0,0.00022561,3]
[386047381,1758198640489,-480.59190243,0.00022561,3]
[386047382,1758198640498,-480.0,0.00022561,3]
[386047383,1758198640507,-481.21609164,0.00022561,3]
[386047384,1758198640517,-480.0,0.00022561,3]
[386047385,1758198640526,-384.83179176,0.00022561,3]
[386047386,1758198640535,-480.0,0.00022561,3]
[386047387,1758198640545,-481.47972172,0.00022561,3]
[386047388,1758198640555,-480.0,0.00022561,3]
[386047389,1758198640564,-480.0,0.00022561,3]
[386047390,1758198640574,-480.0,0.00022561,3]
[386047391,1758198640583,-480.0,0.00022561,3]
[386047392,1758198640592,-480.0,0.00022561,3]
[386047393,1758198640602,-480.0,0.00022561,3]
[386047394,1758198640611,-480.0,0.00022561,3]
[386047395,1758198640620,-480.0,0.00022561,3]
[386047396,1758198640629,-480.0,0.00022561,3]
[386047397,1758198640639,-480.0,0.00022561,3]
[386047398,1758198640648,-480.0,0.00022561,3]
[386047399,1758198640658,-480.0,0.00022561,3]
[386047400,1758198640667,-480.0,0.00022561,3]
[386047401,1758198640676,-480.0,0.00022561,3]
[386047402,1758198640686,-480.0,0.00022561,3]
[386047403,1758198640695,-480.0,0.00022561,3]
[386047404,1758198640704,-480.0,0.00022561,3]
[386047405,1758198640718,-480.0,0.00022561,3]
[386047406,1758198640728,-480.0,0.00022561,3]
[386047407,1758198640737,-480.0,0.00022561,3]
[386047408,1758198640747,-480.0,0.00022561,3]
[386047409,1758198640756,-221.53561177,0.00022561,3]
[386047410,1758198640766,-480.0,0.00022561,3]
[386047411,1758198640775,-480.0,0.00022561,3]
[386047412,1758198640785,-480.0,0.00022561,3]
[386047413,1758198640794,-480.0,0.00022561,3]
[386047414,1758198640804,-212.24870024,0.00022561,3]
[386047415,1758198640813,-480.0,0.00022561,3]
[386047416,1758198640822,-480.0,0.00022561,3]
[386047417,1758198640835,-480.0,0.00022561,3]
[386047418,1758198640844,-480.0,0.00022561,3]
[386047419,1758198640853,-480.0,0.00022561,3]
[386047420,1758198640863,-480.0,0.00022561,3]
[386047421,1758198640872,-480.0,0.00022561,3]
[386047422,1758198640881,-480.0,0.00022561,3]
[386047423,1758198640891,-480.0,0.00022561,3]
[386047424,1758198640900,-480.0,0.00022561,3]
[386047425,1758198640909,-480.0,0.00022561,3]
[386047426,1758198640918,-480.0,0.00022561,3]
[386047427,1758198640927,-480.0,0.00022561,3]
[386047428,1758198640936,-480.0,0.00022561,3]
[386047429,1758198640946,-480.0,0.00022561,3]
[386047430,1758198640955,-480.0,0.00022561,3]
[386047431,1758198640964,-480.0,0.00022561,3]
[386047432,1758198640974,-480.0,0.00022561,3]
[386047433,1758198640983,-480.0,0.00022561,3]
[386047434,1758198640992,-480.0,0.00022561,3]
[386047435,1758198641002,-480.0,0.00022561,3]
[386047436,1758198641011,-480.0,0.00022561,3]
[386047437,1758198641021,-482.67619453,0.00022561,3]
[386047438,1758198641030,-480.0,0.00022561,3]
[386047439,1758198641039,-500.0,0.00022561,3]
[386047440,1758198641049,-522.93235906,0.00022561,3]
[386047441,1758198641153,-480.0,0.00022561,3]
[386047442,1758198641162,-209.77125205,0.00022561,3]
[386047443,1758198641171,-480.0,0.00022561,3]
[386047444,1758198641182,-480.0,0.00022561,3]
[386047445,1758198641191,-480.0,0.00022561,3]
[386047446,1758198641200,-480.0,0.00022561,3]